Cogmind - Beta 15 @@@ ROGUE MODE // 2025.07.22 @ 14:43:07 Player: amhumam Result: Destroyed by QE-X80(R) with Subdweller Machine Gun Performance ------------- Evolutions (0) 0 Regions Visited (3) 600 Robots Destroyed (21) 105 Value Destroyed (550) 550 Prototype IDs (11) 220 Alien Tech Used (0) 0 Bonus (0) 0 TOTAL SCORE: 1475 Bonus ------- None Cogmind --------- Core Integrity 0/250 Matter 245/300 Energy 194/200 System Corruption 0% Temperature Cool (0) Movement Rolling (110) Location -10/Subcaves Parts ------- > --- POWER (1) -------- Subdweller Power Source > --- PROPULSION (2) --- Subdweller Monowheel > --- UTILITY (2) ------ Small Storage Unit > --- WEAPON (2) ------- Subdweller Laser Battle Cannon > --- INVENTORY (8) ---- Subdweller Power Source Cargo Legs Subdweller Monowheel Subdweller Monowheel Subdweller Laser Subdweller Laser Mining Laser Peak State ------------ > --- POWER ------------ Subdweller Power Source > --- PROPULSION ------- Spiked Treads Subdweller Monowheel > --- UTILITY ---------- Small Storage Unit > --- WEAPON ----------- Subdweller Laser Subdweller Machine Gun > --- INVENTORY -------- Subdweller Monowheel Subdweller Laser Subdweller Laser Light Cannon Battle Cannon Mining Laser [Rating: 12] Favorites ----------- Power Ion Engine Engine Ion Engine Propulsion Light Treads Treads Light Treads Wheel Subdweller Monowheel Utility Small Storage Unit Device Seismic Detector Storage Small Storage Unit Weapon Subdweller Laser Energy Gun Subdweller Laser Ballistic Gun Subdweller Machine Gun Ballistic Cannon Light Cannon Build | -11 -10 -10 -10 ------- Run | Yrd Mat Min Sub Slots Evolved . | . . . . Power . | . . . . Propulsion . | . . . . Utility . | . . . . Weapon . | . . . . Parts Attached 15 | 6 . 2 7 Power 2 | 1 . . 1 Engine 2 | 1 . . 1 Core . | . . . . Reactor . | . . . . Propulsion 4 | 2 . . 2 Treads 3 | 2 . . 1 Leg . | . . . . Wheel 1 | . . . 1 Hover . | . . . . Flight . | . . . . Utility 2 | 1 . 1 . Device 1 | . . 1 . Storage 1 | 1 . . . Processor . | . . . . Hackware . | . . . . Protection . | . . . . Artifact . | . . . . Weapon 7 | 2 . 1 4 Energy Gun 4 | 2 . . 2 Energy Cannon . | . . . . Ballistic Gun 1 | . . . 1 Ballistic Cannon 2 | . . 1 1 Launcher . | . . . . Special Weapon . | . . . . Impact Weapon . | . . . . Slashing Weapon . | . . . . Piercing Weapon . | . . . . Special Melee Weapon . | . . . . Unidentified Prototypes . | . . . . Parts Lost 8 | . . . 8 Power 1 | . . . 1 Propulsion 3 | . . . 3 Utility 1 | . . . 1 Weapon 3 | . . . 3 Highest Loss Streak 4 | . . . 4 To Critical Strikes . | . . . . Average Backups 6 | 2 4 6 7 Power . | . 1 1 . Propulsion 2 | 1 2 2 2 Utility . | . . . . Weapon 3 | . 1 3 4 Tool/Special . | . . . . Unused Backups 11 | . . . 11 Power 2 | . . . 2 Propulsion 5 | . . . 5 Utility . | . . . . Weapon 4 | . . . 4 Tool/Special . | . . . . Average Slot Usage (%) 93 | . 85 89 96 Engine 13 | . 14 14 13 Treads 26 | . 28 28 24 Wheel 1 | . . . 2 Device 8 | . . 3 11 Storage 14 | . 14 14 14 Energy Gun 14 | . 28 14 14 Ballistic Gun 6 | . . . 10 Ballistic Cannon 6 | . . 14 2 Peak Build Rating 12 | 6 6 7 12 Average Rating 8 | 4 6 6 9 On Entrance 4 | . 6 6 7 Naked Turns . | . . . . Heaviest Build 19 | 13 13 16 19 Greatest Support 40 | 40 40 40 40 Greatest Overweight (x) . | . . . . Average Overweight (x) . | . . . . Largest Inventory Capacity 8 | 8 8 8 8 Average Capacity 7 | 7 8 8 8 Most Carried 8 | 4 6 6 8 Average Carried 6 | 2 4 6 7 Final Capacity 8 | 8 8 8 8 Final Carried 8 | 4 6 6 8 Class Distribution -------------------- 100% | Mutant Dominant Class ---------------- Mutant | -10/Materials Mutant | -10/Mines Mutant | -10/Subcaves Resources | -11 -10 -10 -10 ----------- Run | Yrd Mat Min Sub Matter Collected 493 | 228 32 42 191 Remotely . | . . . . Salvage Created 531 | . 50 39 442 Parts 47 | . 5 5 37 Haulers Intercepted . | . . . . Recyclers Shooed . | . . . . Parts Field Recycled . | . . . . Retrieved Matter . | . . . . Parts Self-Destructed 20 | . . . 20 Prevented . | . . . . Kills | -11 -10 -10 -10 ------- Run | Yrd Mat Min Sub Combat Hostiles Destroyed 21 | . 3 3 15 Guns 15 | . 3 2 10 Cannons 6 | . . 1 5 Classes Destroyed 2 | . 1 . 1 Swarmer 10 | . 3 3 4 Subdweller 11 | . . . 11 Best Kill Streak 4 | . 3 3 4 Combat Bots Only 4 | . 3 3 4 Max Kills in Single Turn 1 | . 1 1 1 Gunslinging . | . . . . Exploded . | . . . . Melee . | . . . . Uniques/NPCs Destroyed . | . . . . Combat | -11 -10 -10 -10 -------- Run | Yrd Mat Min Sub Hostile Shots Fired 120 | . 13 20 87 Missed 38 | . . 6 32 Hits 82 | . 13 14 55 Projectile 82 | . 13 14 55 Critical Strikes 1 | . . . 1 Damage Taken 1265 | . 112 116 1037 Core 260 | . 37 29 194 Absorbed by Shields . | . . . . Core Remaining (%) 100 | 100 . . . Volleys Fired 76 | . 5 8 63 Largest 2 | . 2 2 2 Hottest 93 | . 90 80 93 Shots Fired 144 | . 10 16 118 Gun 109 | . 10 8 91 Cannon 35 | . . 8 27 Launcher . | . . . . Special . | . . . . Kinetic 63 | . . 8 55 Thermal 81 | . 10 8 63 Explosive . | . . . . Electromagnetic . | . . . . Robot Hit Streak 26 | . 2 6 26 Robot Miss Streak 5 | . 1 4 5 Penetration Max . | . . . . Secondary Targets 1 | . . . 1 Max Gunslinging Chain 1 | . . . 1 Shots Hit Robots 94 | . 5 8 81 Core Hits 32 | . 3 2 27 Critical Kills 2 | . . . 2 Critical Parts Destroyed . | . . . . Critical Strikes 4 | . . . 4 Burn 1 | . . . 1 Destroy 3 | . . . 3 Melee Attacks . | . . . . Impact . | . . . . Slashing . | . . . . Piercing . | . . . . Sneak Attacks . | . . . . Combat Hostiles . | . . . . Follow-up Attacks . | . . . . Damage Inflicted 1777 | . 57 115 1605 Guns 1344 | . 57 50 1237 Cannons 433 | . . 65 368 Explosions . | . . . . Melee . | . . . . Ramming . | . . . . Kinetic 883 | . . 65 818 Thermal 894 | . 57 50 787 Explosive . | . . . . Electromagnetic . | . . . . Impact . | . . . . Slashing . | . . . . Piercing . | . . . . Highest Corruption . | . . . . Average Corruption . | . . . . Corruption Purged . | . . . . Corruption Blocked . | . . . . Overload Shots . | . . . . Overflow Damage 11 | . . 11 . Projectiles 11 | . . 11 . Explosions . | . . . . Melee . | . . . . Knockbacks 4 | . . . 4 Impact . | . . . . Kinetic 4 | . . . 4 Secondary . | . . . . Self-Inflicted Damage . | . . . . Shots . | . . . . Rammed . | . . . . Targets Rammed . | . . . . Kicked . | . . . . Crushed . | . . . . Highest Temperature 144 | . 120 144 2 Average Temperature 63 | . 53 73 2 Received Heat Transfer 207 | . 6 . 201 Siege Activations . | . . . . Martial Activations . | . . . . Shielding Activations . | . . . . Robots Disrupted . | . . . . Combat Hostiles . | . . . . Robots Corrupted . | . . . . Combat Hostiles . | . . . . Parts Fried . | . . . . Impact Corruptions . | . . . . Robots Melted . | . . . . Combat Hostiles . | . . . . Parts Melted 2 | . . . 2 Heat Transferred 1419 | . 149 148 1122 Parts Sabotaged . | . . . . Parts Stolen . | . . . . Parts Stripped . | . . . . Power Chain Reactions . | . . . . Alert | -11 -10 -10 -10 ------- Run | Yrd Mat Min Sub Maximum Alert Level . | . . . . Low Security (%) 100 | 100 100 100 . Level 1 . | . . . . Level 2 . | . . . . Level 3 . | . . . . Level 4 . | . . . . Level 5 . | . . . . High Security . | . . . . Max Security . | . . . . Peak Influence 96 | . 70 96 . Initial 21 | . . 21 . Average 12 | . 22 11 . Influence Increases 331 | . 76 85 170 Destroy 0b10 Robot/C 200 | . 60 60 80 Destroy Leader 20 | . 10 10 . Successful Hack 6 | . 6 . . Disable Machine 15 | . . 15 . Lose Combat Pursuer 90 | . . . 90 Influence Decreases 196 | . 20 141 35 Entered New Map 35 | . . 35 . Time Decay 141 | . 20 106 15 Lost Part 20 | . . . 20 Squads Dispatched . | . . . . Investigation . | . . . . Extermination . | . . . . Reinforcement . | . . . . Assault . | . . . . Garrison . | . . . . Intercept . | . . . . Searches Triggered . | . . . . Construction Impeded . | . . . . Haulers Reinforced . | . . . . Active Scanning Responses . | . . . . Cargo Convoy Interrupts . | . . . . Stealth | -11 -10 -10 -10 --------- Run | Yrd Mat Min Sub Distress Signals 1 | . 1 . . Communications Jammed . | . . . . Distress Signals . | . . . . Times Spotted 25 | . 5 3 17 Peak Tracking Total 4 | . 3 3 4 Tactical Retreats 2 | . . . 2 Traps | -11 -10 -10 -10 ------- Run | Yrd Mat Min Sub Traps Triggered 2 | . . . 2 Indirectly . | . . . . Trap Hack Attempts . | . . . . Triggered . | . . . . Disarmed . | . . . . Reprogrammed . | . . . . Reused . | . . . . Traps Extracted . | . . . . Installed . | . . . . Triggered . | . . . . Machines | -11 -10 -10 -10 ---------- Run | Yrd Mat Min Sub Machines Disabled 2 | . . 1 1 Max in Single Turn 1 | . . 1 1 Machines Repaired . | . . . . Machines Dismantled . | . . . . Machines Sabotaged . | . . . . Overloaded Fab Kills . | . . . . Hacking | -11 -10 -10 -10 --------- Run | Yrd Mat Min Sub Machines Accessed 2 | . 1 . 1 Terminals 1 | . 1 . . Fabricators . | . . . . Repair Stations . | . . . . Recycling Units . | . . . . Scanalyzers . | . . . . Garrison Access . | . . . . Total Hacks 9 | . 8 . 1 Successful 6 | . 5 . 1 Failed 3 | . 3 . . Catastrophic . | . . . . Database Lockouts . | . . . . Manual 8 | . 8 . . Terminals 8 | . 8 . . Fabricators . | . . . . Repair Stations . | . . . . Recycling Units . | . . . . Scanalyzers . | . . . . Garrison Access . | . . . . Terminal Hacks 3 | . 2 . 1 Part Schematic 1 | . 1 . . Robot Analysis 1 | . 1 . . Proto ID Catalog 1 | . . . 1 Fabricator Hacks . | . . . . Repair Station Hacks . | . . . . Recycling Unit Hacks . | . . . . Scanalyzer . | . . . . Garrison Access Hacks . | . . . . Unauthorized Hacks 3 | . 3 . . Terminals 3 | . 3 . . Assimilate 1 | . 1 . . Botnet 1 | . 1 . . Operators 1 | . 1 . . Fabricators . | . . . . Repair Stations . | . . . . Recycling Units . | . . . . Scanalyzers . | . . . . Garrison Access . | . . . . Data Cores Recovered . | . . . . Used . | . . . . Hacking Detections 1 | . 1 . . Full Trace Events . | . . . . Feedback Events . | . . . . Feedback Blocked . | . . . . Robot Schematics Acquired . | . . . . Robots Built . | . . . . Authchips . | . . . . Time . | . . . . Total Robot Build Rating . | . . . . Part Schematics Acquired 1 | . 1 . . Parts Built . | . . . . Authchips . | . . . . Time . | . . . . Total Part Build Rating . | . . . . Parts Repaired . | . . . . Time . | . . . . Parts Recycled . | . . . . Recycled Matter . | . . . . Retrieved Matter . | . . . . Retrieved Components . | . . . . Parts Scanalyzed . | . . . . Part Schematics Acquired . | . . . . Parts Damaged . | . . . . Bothacking | -11 -10 -10 -10 ------------ Run | Yrd Mat Min Sub Used RIF Installer . | . . . . Robots Hacked . | . . . . Non-combat . | . . . . Combat . | . . . . Robot Hacks Applied . | . . . . Relay Couplers Released . | . . . . Fabnet Peak Effective % . | . . . . Robots Rewired . | . . . . Allies Hacked . | . . . . Hacks Repelled . | . . . . Allies | -11 -10 -10 -10 -------- Run | Yrd Mat Min Sub Total Allies . | . . . . Largest Group . | . . . . Highest-Rated Group . | . . . . Highest-Rated Ally . | . . . . Total Orders . | . . . . Ally Attacks . | . . . . Total Damage . | . . . . Kills . | . . . . Allies Corrupted . | . . . . Allies Melted . | . . . . Intel | -11 -10 -10 -10 ------- Run | Yrd Mat Min Sub Active Infowar (turns) 1577 | . . 267 1310 Seismic 1577 | . . 267 1310 Robot Analysis Total 1 | . 1 . . Derelict Logs Recovered 3 | . . 1 2 Drone Launches . | . . . . Drone Recoveries . | . . . . Exploration | -11 -10 -10 -10 ------------- Run | Yrd Mat Min Sub Turns Passed 2769 | 73 139 947 1610 Spaces Moved 1609 | 45 77 570 917 Core 10 | 10 . . . Treads 1431 | 35 77 570 749 Legs . | . . . . Wheels 168 | . . . 168 Hover . | . . . . Flight . | . . . . Fastest Speed 50 | 50 160 160 110 Average Speed 154 | 135 160 160 150 Slowest Speed 160 | 160 160 160 160 Overloaded Moves . | . . . . Propulsion Burnouts . | . . . . Robots Hopped . | . . . . Potential Cave-ins . | . . . . Cave-ins Triggered . | . . . . Exploration Rate (%) 48 | 4 28 99 62 Regions Visited 3 Branch Regions 2 Pre-discovered Areas 1 | . . . 1 Known Exits Taken . | . . . . Unknown Exits Taken 3 | 1 1 1 . Scrap Searched 3 | . . 1 2 Spaces Dug . | . . . . Terrain Destroyed . | . . . . Melee . | . . . . Projectile . | . . . . AOE . | . . . . Terrain Rammed . | . . . . Walls Destroyed . | . . . . Machines Disabled . | . . . . Actions | -11 -10 -10 -10 --------- Run | Yrd Mat Min Sub Total 1754 | 54 83 588 1029 Wait 30 | . . 9 21 Move 1606 | 44 76 569 917 Hop . | . . . . Pick Up 18 | 4 2 . 12 Fast Attach 7 | 6 . 1 . Attach 6 | . . . 6 Detach . | . . . . Swap 4 | . . 1 3 Drop 7 | . . . 7 Fire 76 | . 5 8 63 Melee . | . . . . Ram . | . . . . Kick . | . . . . Crush . | . . . . Escape Stasis . | . . . . Rewire . | . . . . Trap . | . . . . Miscellaneous . | . . . . Route ------- -11/Scrapyard -10/Materials -10/Mines (discovered 3 exits: [*Mat x2] / *Sub) -10/Subcaves (discovered 3 exits: [*Mat x2] / [*Scr]) History --------- Turn | Location | Event 10 | -11/Scrapyard | Discovered new exit (range 15) 74 | -11/Scrapyard | Entered Materials 180 | -10/Materials | Discovered new exit (range 15) 213 | -10/Materials | Entered Mines 273 | -10/Mines | Learned 2 Materials zone layouts 310 | -10/Mines | Build established: Mutant 569 | -10/Mines | Discovered new exit (range 9) 939 | -10/Mines | Discovered new exit (range 16) 1120 | -10/Mines | Discovered new exit (range 12) 1160 | -10/Mines | Entered Subcaves 1161 | -10/Subcaves | Approached by a straggling Scientist 1180 | -10/Subcaves | Learned Materials emergency access door positions 1201 | -10/Subcaves | Disturbed a concealed Subdweller 1644 | -10/Subcaves | Scientist uncovered a shortcut to Scraptown 1840 | -10/Subcaves | Learned 2 Materials zone layouts 1864 | -10/Subcaves | Discovered new exit (range 11) 2088 | -10/Subcaves | Learned location of Zion (-6) 2088 | -10/Subcaves | Met a Zionite searching for "candidates" 2289 | -10/Subcaves | Core integrity fell below 50% 2434 | -10/Subcaves | Discovered new exit (range 13) 2534 | -10/Subcaves | Lost 4 parts (1p1n1u1w) 2610 | -10/Subcaves | Visited 4L-MR0's lab 2620 | -10/Subcaves | Found Cargo Legs 2686 | -10/Subcaves | Core integrity fell below 20% 2770 | -10/Subcaves | Destroyed by QE-X80(R) with Subdweller Machine Gun Last Messages --------------- 02656_ Acquired 8 matter. 02658_ Acquired 5 matter. 02663_ Subatomizers dissect the Disposable Heat Sink. 02688_ Lgt. Cannon destroyed. 02690_ Spk. Treads destroyed. 02694_ S-10 Pest destroyed. 02703_ Flight Unit fries itself beyond repair. 02704_ S-10 Pest destroyed. 02709_ Acquired 5 matter. 02711_ S-10 Pest destroyed. 02713_ Flight Unit fries itself beyond repair. 02717_ S-10 Pest destroyed. 02718_ Acquired 5 matter. 02721_ Lgt. Assault Rifle fries itself beyond repair. 02727_ Flight Unit fries itself beyond repair. 02730_ Acquired Sub. Monowheel. 02731_ Lgt. Ion Engine fries itself beyond repair. Map ----- +----------------------------------------------------+ | ????????????????????????# ### #???????? | | ????????????????????????# ???# ##?????#? | | ???????????????????????# ????# ##### ## | | ???????????????????????##????# ### # | | ?????????????????????????# ##?# # | | ?????????????????????????# ##?## # | | ?????????????????????????# #???# ## # | | ?????????????????????????# ###???## ##?? ## | | ?????????????????????????# #???#### #???? ##? | | ?????????????????????????####### #?????#?? | | ??????????????????????????## ## ##??????? | | ??????????????????????????# #??????? | | ?????????????????????????## #??????? | | ????????????????????????## * % ## #?????? | | ????????????????????????# &&&##?###?????? | | ????????????????????????# *%% [ !& %%###????????? | | ????????????????????????# %########! #????????? | | ?????????????????????#" %% ???????# % ##???????#? | | ?????????????????????# ????????# #??????? #? | | ?????????????????????# ????????## #?????? ?? | | ?????????????????????#" ?????????# ##???? ##?? | | ?????????????????????#" "?????????# #### ##? | | ?????????????????????#"""??????????## # ## | | ?????????????????????####?????????## | | ???????????? # ##########?####### | | ?????????? R @### # ## < # | | ?????????? % % ## ######? ## | | ?????????????# % ## #?????? #? | | ???????????# ### & ### #??### #? | | ???????????###### # ??#### #?# ### #? | | ????????????????# #####???## & ### #?? | | ????????????????# ?????????# #??? | | ??????????????? ??????????# #??? | | ????????????? ???????????## #??? | | ????????????? ?????????????# ### #??? | | ?????????????? ??????????????# #?? #??? | | ?????????????????????????????## #####??? #??? | | ??????????????????????????????## ## #???? ?? | | ??????????????????????? "### #?????? ?? | | ??????????????????????? " ##?????????? | | ??????????????????????? % " ### # ##?????????? | | ???????????????????????? " #??#### #?????????? | | ????????????????????????## " #??????# #?????????? | | ?????????????????????????### #???????# #?????????? | | ???????????????????????????##????????# ###???????? | | ?????????????????????????????????????# #???????? | | ?????????????????????????????????#???# ##???????? | | ????????????????????????????????## ### ##???????? | | ????????????????????????????????# ##??????? | | ??????????????????????????????#### ##?????? | +----------------------------------------------------+ Best States ------------- Heat Dissipation 25 Energy Generation 15 Energy Capacity 250 Matter Stores 300 Matter Capacity 300 Sight Range 16 Terrain Scan Density 10 Evasion (%) 40 Recoil Reduction 2 Item Schematics ----------------- Lrg. Storage Unit | -10/Materials | Hacked Robot Schematics ------------------ None Fabricated ------------ Nothing Repaired ---------- Nothing Alien Tech Used ----------------- None Achievements -------------- None Challenges ------------ None Game ------ Seed OpticalTractorNanosword Manual? 0 Play Time 00:16:04 Cumulative 259.3 hours Start 2025.07.22 @ 14:29:16 End 2025.07.22 @ 14:43:07 Sessions 1 Manual Loads 0 Difficulty Rogue Special Mode None Game No. 231 Rogue 231 Adventurer 0 Explorer 0 Win Type - Total 1 Types 1/0/0/0/0/0/0/0/0/0 Lore% 77 Gallery% 64 Achievement% 55 Wizard Run 0 Options --------- Layout 1 ASCII 0 Keyboard 0 Movement Mouse Keybinds 0 Fullscreen 1 Font 24/Smallcaps Map View 50x35 Zoom Use 0% Tactical HUD 1 Map Filters NONE Filters NONE Steam 1 RUN: c75c0d7e-2962-466f-9ec7-743e4dbe01a2